fUST/lending_fUST_20250717
["ID","MTS","AMOUNT","RATE_DAILY","PERIOD"]
[372555747,1752682259618,-460.0,0.00019726,2]
[372555748,1752682259628,-460.0,0.00019726,2]
[372555749,1752682259637,-460.0,0.00019726,2]
[372555750,1752682259646,-460.0,0.00019726,2]
[372555751,1752682259656,-460.0,0.00019726,2]
[372555752,1752682259666,-460.0,0.00019726,2]
[372555753,1752682259675,-460.0,0.00019726,2]
[372555754,1752682259685,-1068.7,0.00019726,2]
[372555755,1752682259695,-460.0,0.00019726,2]
[372555756,1752682259704,-460.0,0.00019726,2]
[372555757,1752682259713,-461.69,0.00019726,2]
[372555758,1752682259723,-460.0,0.00019726,2]
[372555759,1752682259732,-1077.39,0.00019726,2]
[372555760,1752682259742,-460.0,0.00019726,2]
[372555761,1752682259752,-460.0,0.00019726,2]
[372555762,1752682259762,-715.65,0.00019726,2]
[372555763,1752682259773,-957.64,0.00019726,2]
[372555764,1752682259783,-460.0,0.00019726,2]
[372555765,1752682259792,-460.0,0.00019726,2]
[372555766,1752682259802,-460.0,0.00019726,2]
[372555767,1752682259908,-460.0,0.00019726,2]
[372555768,1752682259918,-460.0,0.00019726,2]
[372555769,1752682259927,-460.0,0.00019726,2]
[372555770,1752682259936,-460.0,0.00019726,2]
[372555771,1752682259945,-460.0,0.00019726,2]
[372555772,1752682259956,-460.0,0.00019726,2]
[372555773,1752682259966,-460.0,0.00019726,2]
[372555774,1752682259975,-460.0,0.00019726,2]
[372555775,1752682259985,-460.0,0.00019726,2]
[372555776,1752682259995,-460.0,0.00019726,2]
[372555777,1752682260004,-460.0,0.00019726,2]
[372555778,1752682260014,-460.0,0.00019726,2]
[372555779,1752682260027,-1115.86,0.00019726,2]
[372555780,1752682260037,-523.69,0.00019726,2]
[372555781,1752682260047,-4066.52,0.00019726,2]
[372555782,1752682260057,-463.93212431,0.00019726,2]
[372555783,1752682260067,-460.0,0.00019726,2]
[372555784,1752682260076,-619.31,0.00019726,2]
[372555785,1752682260086,-574.27,0.00019726,2]
[372555786,1752682260096,-460.0,0.00019726,2]
[372555787,1752682260106,-460.0,0.00019726,2]
[372555788,1752682260116,-460.0,0.00019726,2]
[372555789,1752682260126,-460.0,0.00019726,2]
[372555790,1752682260135,-460.0,0.00019726,2]
[372555791,1752682260145,-1328.1,0.00019726,2]
[372555792,1752682260155,-918.72,0.00019726,2]
[372555793,1752682260164,-2299.85,0.00019726,2]
[372555794,1752682260174,-460.0,0.00019726,2]
[372555795,1752682260184,-460.0,0.00019726,2]
[372555796,1752682260193,-773.05,0.00019726,2]
[372555797,1752682260203,-462.0843262,0.00019726,2]
[372555798,1752682260213,-464.26113535,0.00019726,2]
[372555799,1752682260222,-460.0,0.00019726,2]
[372555800,1752682260232,-460.0,0.00019726,2]
[372555801,1752682260241,-4580.98,0.00019726,2]
[372555802,1752682260251,-182.55108318,0.00019726,2]
[372555803,1752682260261,-460.0,0.00019726,2]
[372555804,1752682260276,-460.0,0.00019726,2]
[372555805,1752682260286,-460.0,0.00019726,2]
[372555806,1752682260296,-755.59,0.00019726,2]
[372555807,1752682260306,-460.0,0.00019726,2]
[372555808,1752682260316,-913.1,0.00019726,2]
[372555809,1752682260326,-460.0,0.00019726,2]
[372555810,1752682260335,-460.0,0.00019726,2]
[372555811,1752682260348,-460.0,0.00019726,2]
[372555812,1752682260358,-810.6,0.00019726,2]
[372555813,1752682260368,-985.68,0.00019726,2]
[372555814,1752682260378,-460.0,0.00019726,2]
[372555815,1752682260389,-460.0,0.00019726,2]
[372555816,1752682260399,-461.49506162,0.00019726,2]
[372555817,1752682260409,-460.0,0.00019726,2]
[372555818,1752682260419,-460.0,0.00019726,2]
[372555819,1752682260429,-460.0,0.00019726,2]
[372555820,1752682260440,-1927.53,0.00019726,2]
[372555821,1752682260450,-460.0,0.00019726,2]
[372555822,1752682260459,-460.0,0.00019726,2]
[372555823,1752682260469,-460.0,0.00019726,2]
[372555824,1752682260479,-477.77,0.00019726,2]
[372555825,1752682260489,-460.0,0.00019726,2]
[372555826,1752682260499,-2098.91,0.00019726,2]
[372555827,1752682260509,-460.0,0.00019726,2]
[372555828,1752682260522,-460.0,0.00019726,2]
[372555829,1752682260532,-460.0,0.00019726,2]
[372555830,1752682260542,-460.0,0.00019726,2]
[372555831,1752682260552,-850.69,0.00019726,2]
[372555832,1752682260562,-460.0,0.00019726,2]
[372555833,1752682260571,-460.0,0.00019726,2]
[372555834,1752682260581,-460.0,0.00019726,2]
[372555835,1752682260591,-3246.09,0.00019726,2]
[372555836,1752682260601,-460.0,0.00019726,2]
[372555837,1752682260611,-460.0,0.00019726,2]
[372555838,1752682260620,-460.0,0.00019726,2]
[372555839,1752682260630,-460.0,0.00019726,2]
[372555840,1752682260640,-460.0,0.00019726,2]
[372555841,1752682260649,-496.33,0.00019726,2]
[372555842,1752682260659,-460.0,0.00019726,2]
[372555843,1752682260668,-4054.42,0.00019726,2]
[372555844,1752682260678,-460.0,0.00019726,2]
[372555845,1752682260689,-1129.6,0.00019726,2]
[372555846,1752682260699,-460.0,0.00019726,2]
[372555847,1752682260708,-460.0,0.00019726,2]
[372555848,1752682260718,-460.0,0.00019726,2]
[372555849,1752682260728,-460.0,0.00019726,2]
[372555850,1752682260737,-460.0,0.00019726,2]
[372555851,1752682260747,-460.0,0.00019726,2]
[372555852,1752682260757,-460.0,0.00019726,2]
[372555853,1752682260767,-460.0,0.00019726,2]
[372555854,1752682260779,-500.0,0.0001985,2]
[372555855,1752682260789,-7562.15499518,0.00019866,2]
[372555856,1752682260798,-1500.0,0.00019868,2]
[372555857,1752682260808,-1500.0,0.00019868,2]
[372555858,1752682260818,-160.0,0.00019889,2]
[372555859,1752682260828,-500.0,0.00019973,2]
[372555860,1752682260838,-500.0,0.00019973,2]
[372555861,1752682260848,-351.93703583,0.00019973,2]
[372555862,1752682260857,-460.0,0.0002,2]
[372555863,1752682260867,-522.14891893,0.0002,2]
[372555864,1752682260877,-460.0,0.0002,2]
[372555865,1752682260887,-1000.0,0.0002,2]
[372555866,1752682260896,-460.0,0.0002,2]
[372555867,1752682260906,-460.0,0.0002,2]
[372555868,1752682260915,-460.0,0.0002,2]
[372555869,1752682260925,-460.0,0.0002,2]
[372555870,1752682260936,-460.0,0.0002,2]
[372555871,1752682260946,-460.0,0.0002,2]
[372555872,1752682260956,-460.0,0.0002,2]
[372555873,1752682260965,-460.0,0.0002,2]
[372555874,1752682260975,-460.0,0.0002,2]
[372555875,1752682260985,-254.42131253,0.0002,2]
[372555876,1752682260995,-460.0,0.0002,2]
[372555877,1752682261005,-460.0,0.0002,2]
[372555878,1752682261014,-460.0,0.0002,2]
[372555879,1752682261029,-460.0,0.0002,2]
[372555880,1752682261038,-460.0,0.0002,2]
[372555881,1752682261048,-460.0,0.0002,2]
[372555882,1752682261067,-460.0,0.0002,2]
[372555883,1752682261079,-274.867477,0.0002,2]
[372555884,1752682261089,-516.35994133,0.0002,2]
[372555885,1752682261098,-258.52047324,0.0002,2]
[372555886,1752682261107,-460.0,0.0002,2]
[372555887,1752682261117,-460.0,0.0002,2]
[372555888,1752682261126,-460.0,0.0002,2]
[372555889,1752682261135,-460.0,0.0002,2]
[372555890,1752682261145,-555.83,0.0002,2]
[372555891,1752682261154,-460.0,0.0002,2]
[372555892,1752682261164,-460.0,0.0002,2]
[372555893,1752682261173,-460.0,0.0002,2]
[372555894,1752682261183,-460.0,0.0002,2]
[372555895,1752682261192,-460.0,0.0002,2]
[372555896,1752682261203,-460.0,0.0002,2]
[372555897,1752682261213,-460.0,0.0002,2]
[372555898,1752682261222,-460.0,0.0002,2]
[372555899,1752682261232,-460.0,0.0002,2]
[372555900,1752682261242,-460.0,0.0002,2]
[372555901,1752682261251,-460.0,0.0002,2]
[372555902,1752682261261,-460.0,0.0002,2]
[372555903,1752682261271,-460.0,0.0002,2]
[372555904,1752682261281,-460.0,0.0002,2]
[372555905,1752682261291,-460.0,0.0002,2]
[372555906,1752682261301,-187.02192602,0.0002,2]
[372555907,1752682261311,-460.0,0.0002,2]
[372555908,1752682261320,-460.0,0.0002,2]
[372555909,1752682261330,-552.96923944,0.0002,2]
[372555910,1752682261342,-460.0,0.0002,2]
[372555911,1752682261356,-470.94396115,0.0002,2]
[372555912,1752682261365,-460.0,0.0002,2]
[372555913,1752682261376,-459.02429141,0.0002,2]
[372555914,1752682261387,-460.0,0.0002,2]
[372555915,1752682261396,-460.0,0.0002,2]
[372555916,1752682261406,-460.0,0.0002,2]
[372555917,1752682261417,-460.0,0.0002,2]
[372555918,1752682261427,-460.0,0.0002,2]
[372555919,1752682261437,-463.67983135,0.0002,2]
[372555920,1752682261447,-521.67144259,0.0002,2]
[372555921,1752682261457,-460.0,0.0002,2]
[372555922,1752682261466,-460.0,0.0002,2]
[372555923,1752682261476,-460.0,0.0002,2]
[372555924,1752682261486,-556.02160503,0.0002,2]
[372555925,1752682261496,-460.0,0.0002,2]
[372555926,1752682261506,-774.56,0.0002,2]
[372555927,1752682261517,-460.0,0.0002,2]
[372555928,1752682261528,-460.0,0.0002,2]
[372555929,1752682261538,-460.0,0.0002,2]
[372555930,1752682261548,-460.0,0.0002,2]
[372555931,1752682261558,-460.0,0.0002,2]
[372555932,1752682261568,-460.0,0.0002,2]
[372555933,1752682261577,-460.0,0.0002,2]
[372555934,1752682261587,-460.0,0.0002,2]
[372555935,1752682261596,-508.47,0.0002,2]
[372555936,1752682261606,-343.23900978,0.0002,2]
[372555937,1752682261616,-460.0,0.0002,2]
[372555938,1752682261625,-460.0,0.0002,2]
[372555939,1752682261635,-462.87,0.0002,2]
[372555940,1752682261645,-460.0,0.0002,2]
[372555941,1752682261654,-460.0,0.0002,2]
[372555942,1752682261663,-460.0,0.0002,2]
[372555943,1752682261673,-460.0,0.0002,2]
[372555944,1752682261682,-460.0,0.0002,2]
[372555945,1752682261777,-460.0,0.0002,2]
[372555946,1752682261810,-460.0,0.0002,2]
[372555947,1752682261827,-460.0,0.0002,2]
[372555948,1752682261837,-460.0,0.0002,2]
[372555949,1752682261847,-460.0,0.0002,2]
[372555950,1752682261857,-460.0,0.0002,2]
[372555951,1752682261867,-460.0,0.0002,2]
[372555952,1752682261876,-462.94100938,0.0002,2]
[372555953,1752682261886,-460.0,0.0002,2]
[372555954,1752682261896,-460.0,0.0002,2]
[372555955,1752682261905,-460.0,0.0002,2]
[372555956,1752682261915,-465.31352507,0.0002,2]
[372555957,1752682261924,-460.0,0.0002,2]
[372555958,1752682261934,-460.0,0.0002,2]
[372555959,1752682261944,-460.0,0.0002,2]
[372555960,1752682261954,-431.76213439,0.0002,2]
[372555961,1752682261963,-461.56965351,0.0002,2]
[372555962,1752682261973,-460.0,0.0002,2]
[372555963,1752682261982,-460.0,0.0002,2]
[372555964,1752682261992,-512.75,0.0002,2]
[372555965,1752682262001,-460.0,0.0002,2]
[372555966,1752682262011,-460.0,0.0002,2]
[372555967,1752682262023,-465.95814815,0.0002,2]
[372555968,1752682262032,-800.36,0.0002,2]
[372555969,1752682262042,-460.0,0.0002,2]
[372555970,1752682262052,-460.0,0.0002,2]
[372555971,1752682262061,-460.0,0.0002,2]
[372555972,1752682262071,-460.0,0.0002,2]
[372555973,1752682262081,-705.11,0.0002,2]
[372555974,1752682262091,-460.0,0.0002,2]
[372555975,1752682262101,-460.0,0.0002,2]
[372555976,1752682262110,-460.0,0.0002,2]
[372555977,1752682262120,-460.0,0.0002,2]
[372555978,1752682262130,-895.39,0.0002,2]
[372555979,1752682262140,-460.0,0.0002,2]
[372555980,1752682262151,-460.0,0.0002,2]
[372555981,1752682262160,-460.0,0.0002,2]
[372555982,1752682262170,-460.0,0.0002,2]
[372555983,1752682262180,-379.57548603,0.0002,2]
[372555984,1752682262190,-460.0,0.0002,2]
[372555985,1752682262199,-460.0,0.0002,2]
[372555986,1752682262209,-749.62,0.0002,2]
[372555987,1752682262219,-460.0,0.0002,2]
[372555988,1752682262228,-460.0,0.0002,2]
[372555989,1752682262238,-460.0,0.0002,2]
[372555990,1752682262248,-460.0,0.0002,2]
[372555991,1752682262258,-460.0,0.0002,2]
[372555992,1752682262270,-460.0,0.0002,2]
[372555993,1752682262280,-460.0,0.0002,2]
[372555994,1752682262290,-460.0,0.0002,2]
[372555995,1752682262300,-460.0,0.0002,2]
[372555996,1752682262310,-460.0,0.0002,2]
[372555997,1752682262320,-460.0,0.0002,2]
[372555998,1752682262330,-460.0,0.0002,2]
[372555999,1752682262342,-460.0,0.0002,2]
[372556000,1752682262356,-460.0,0.0002,2]
[372556001,1752682262366,-460.0,0.0002,2]
[372556002,1752682262375,-460.0,0.0002,2]
[372556003,1752682262387,-460.0,0.0002,2]
[372556004,1752682262396,-1006.97,0.0002,2]
[372556005,1752682262406,-460.0,0.0002,2]
[372556006,1752682262416,-460.0,0.0002,2]
[372556007,1752682262427,-460.0,0.0002,2]
[372556008,1752682262437,-582.75,0.0002,2]
[372556009,1752682262447,-460.0,0.0002,2]
[372556010,1752682262457,-460.0,0.0002,2]
[372556011,1752682262467,-460.0,0.0002,2]
[372556012,1752682262477,-460.0,0.0002,2]
[372556013,1752682262488,-460.0,0.0002,2]
[372556014,1752682262497,-1201.4,0.0002,2]
[372556015,1752682262507,-460.0,0.0002,2]
[372556016,1752682262520,-460.0,0.0002,2]
[372556017,1752682262530,-1474.43,0.0002,2]
[372556018,1752682262539,-460.0,0.0002,2]
[372556019,1752682262549,-462.63517024,0.0002,2]
[372556020,1752682262559,-460.0,0.0002,2]
[372556021,1752682262568,-460.0,0.0002,2]
[372556022,1752682262578,-460.0,0.0002,2]
[372556023,1752682262588,-828.54,0.0002,2]
[372556024,1752682262597,-460.0,0.0002,2]
[372556025,1752682262607,-460.0,0.0002,2]
[372556026,1752682262617,-460.0,0.0002,2]
[372556027,1752682262627,-460.0,0.0002,2]
[372556028,1752682262636,-460.0,0.0002,2]
[372556029,1752682262646,-460.0,0.0002,2]
[372556030,1752682262656,-460.0,0.0002,2]
[372556031,1752682262666,-507.41,0.0002,2]
[372556032,1752682262676,-460.0,0.0002,2]
[372556033,1752682262685,-632.11,0.0002,2]
[372556034,1752682262695,-460.0,0.0002,2]
[372556035,1752682262705,-460.0,0.0002,2]
[372556036,1752682262715,-460.0,0.0002,2]
[372556037,1752682262724,-460.0,0.0002,2]
[372556038,1752682262735,-460.0,0.0002,2]
[372556039,1752682262745,-465.59178409,0.0002,2]
[372556040,1752682262755,-1356.45,0.0002,2]
[372556041,1752682262765,-460.0,0.0002,2]
[372556042,1752682262778,-460.0,0.0002,2]
[372556043,1752682262788,-460.0,0.0002,2]
[372556044,1752682262797,-761.93,0.0002,2]
[372556045,1752682262807,-460.0,0.0002,2]
[372556046,1752682262817,-460.0,0.0002,2]
[372556047,1752682262827,-460.0,0.0002,2]
[372556048,1752682262837,-600.35,0.0002,2]
[372556049,1752682262846,-460.0,0.0002,2]
[372556050,1752682262856,-460.0,0.0002,2]
[372556051,1752682262866,-949.14,0.0002,2]
[372556052,1752682262876,-460.0,0.0002,2]
[372556053,1752682262886,-460.0,0.0002,2]
[372556054,1752682262895,-624.22,0.0002,2]
[372556055,1752682262905,-1370.55,0.0002,2]
[372556056,1752682262915,-1009.28,0.0002,2]
[372556057,1752682262925,-460.0,0.0002,2]
[372556058,1752682262934,-460.0,0.0002,2]
[372556059,1752682262944,-460.0,0.0002,2]
[372556060,1752682262954,-460.0,0.0002,2]
[372556061,1752682262964,-664.71,0.0002,2]
[372556062,1752682262974,-460.0,0.0002,2]
[372556063,1752682262984,-460.0,0.0002,2]
[372556064,1752682262994,-460.0,0.0002,2]
[372556065,1752682263004,-460.0,0.0002,2]
[372556066,1752682263013,-460.0,0.0002,2]
[372556067,1752682263024,-461.38794687,0.0002,2]
[372556068,1752682263034,-460.0,0.0002,2]
[372556069,1752682263045,-460.0,0.0002,2]
[372556070,1752682263055,-460.0,0.0002,2]
[372556071,1752682263066,-569.95,0.0002,2]
[372556072,1752682263076,-460.0,0.0002,2]
[372556073,1752682263085,-460.0,0.0002,2]
[372556074,1752682263095,-460.0,0.0002,2]
[372556075,1752682263105,-225.18408219,0.0002,2]
[372556076,1752682263114,-460.0,0.0002,2]
[372556077,1752682263124,-460.0,0.0002,2]
[372556078,1752682263134,-460.0,0.0002,2]
[372556079,1752682263144,-460.0,0.0002,2]
[372556080,1752682263153,-460.0,0.0002,2]
[372556081,1752682263163,-712.27,0.0002,2]
[372556082,1752682263173,-2013.52,0.0002,2]
[372556083,1752682263183,-952.9,0.0002,2]
[372556084,1752682263192,-3683.85,0.0002,2]
[372556085,1752682263202,-460.0,0.0002,2]
[372556086,1752682263212,-1497.64,0.0002,2]
[372556087,1752682263222,-460.0,0.0002,2]
[372556088,1752682263232,-460.0,0.0002,2]
[372556089,1752682263243,-460.0,0.0002,2]
[372556090,1752682263252,-460.0,0.0002,2]
[372556091,1752682263262,-535.61285519,0.0002,2]
[372556092,1752682263274,-460.0,0.0002,2]
[372556093,1752682263284,-619.97,0.0002,2]
[372556094,1752682263294,-585.24,0.0002,2]
[372556095,1752682263304,-460.0,0.0002,2]
[372556096,1752682263314,-777.46,0.0002,2]
[372556097,1752682263324,-460.0,0.0002,2]
[372556098,1752682263334,-460.0,0.0002,2]
[372556099,1752682263347,-460.0,0.0002,2]
[372556100,1752682263356,-460.0,0.0002,2]
[372556101,1752682263366,-461.22322508,0.0002,2]
[372556102,1752682263376,-460.0,0.0002,2]
[372556103,1752682263387,-527.81599533,0.0002,2]
[372556104,1752682263397,-1172.05,0.0002,2]
[372556105,1752682263407,-1533.49,0.0002,2]
[372556106,1752682263419,-460.0,0.0002,2]
[372556107,1752682263430,-260.05161896,0.0002,2]
[372556108,1752682263440,-460.0,0.0002,2]
[372556109,1752682263450,-3198.06,0.0002,2]
[372556110,1752682263561,-9374.46,0.0002,2]
[372556111,1752682263572,-460.0,0.0002,2]
[372556112,1752682263584,-460.0,0.0002,2]
[372556113,1752682263594,-460.0,0.0002,2]
[372556114,1752682263604,-500.0,0.0002,2]
[372556115,1752682263614,-460.0,0.0002,2]
[372556116,1752682263624,-460.0,0.0002,2]
[372556117,1752682263634,-460.0,0.0002,2]
[372556118,1752682263645,-512.38,0.0002,2]
[372556119,1752682263654,-460.0,0.0002,2]
[372556120,1752682263665,-460.0,0.0002,2]
[372556121,1752682263675,-605.37,0.0002,2]
[372556122,1752682263685,-460.0,0.0002,2]
[372556123,1752682263694,-460.0,0.0002,2]
[372556124,1752682263704,-460.0,0.0002,2]
[372556125,1752682263714,-460.0,0.0002,2]
[372556126,1752682263724,-460.0,0.0002,2]
[372556127,1752682263734,-460.0,0.0002,2]
[372556128,1752682263744,-460.0,0.0002,2]
[372556129,1752682263754,-838.16,0.0002,2]
[372556130,1752682263764,-460.0,0.0002,2]
[372556131,1752682263776,-460.0,0.0002,2]
[372556132,1752682263786,-460.0,0.0002,2]
[372556133,1752682263796,-2434.41,0.0002,2]
[372556134,1752682263806,-5102.38,0.0002,2]
[372556135,1752682263816,-602.13,0.0002,2]
[372556136,1752682263826,-503.85243429,0.0002,2]
[372556137,1752682263835,-460.0,0.0002,2]
[372556138,1752682263845,-460.0,0.0002,2]
[372556139,1752682263855,-460.0,0.0002,2]
[372556140,1752682263865,-460.0,0.0002,2]
[372556141,1752682263874,-1404.59,0.0002,2]
[372556142,1752682263884,-460.0,0.0002,2]
[372556143,1752682263894,-460.0,0.0002,2]
[372556144,1752682263904,-460.0,0.0002,2]
[372556145,1752682263914,-460.0,0.0002,2]
[372556146,1752682263923,-511.55617701,0.0002,2]
[372556147,1752682263933,-499.74,0.0002,2]
[372556148,1752682263944,-460.0,0.0002,2]
[372556149,1752682263954,-460.0,0.0002,2]
[372556150,1752682263964,-1737.0,0.0002,2]
[372556151,1752682263974,-460.0,0.0002,2]
[372556152,1752682263985,-8485.34,0.0002,2]
[372556153,1752682263995,-460.0,0.0002,2]
[372556154,1752682264005,-460.0,0.0002,2]
[372556155,1752682264015,-460.0,0.0002,2]
[372556156,1752682264027,-460.0,0.0002,2]
[372556157,1752682264038,-460.0,0.0002,2]
[372556158,1752682264048,-1068.7,0.0002,2]
[372556159,1752682264058,-460.0,0.0002,2]
[372556160,1752682264070,-460.0,0.0002,2]
[372556161,1752682264080,-461.69,0.0002,2]
[372556162,1752682264090,-460.0,0.0002,2]
[372556163,1752682264100,-1077.39,0.0002,2]
[372556164,1752682264112,-460.0,0.0002,2]
[372556165,1752682264122,-460.0,0.0002,2]
[372556166,1752682264132,-715.65,0.0002,2]
[372556167,1752682264142,-957.64,0.0002,2]
[372556168,1752682264152,-460.0,0.0002,2]
[372556169,1752682264162,-460.0,0.0002,2]
[372556170,1752682264173,-460.0,0.0002,2]
[372556171,1752682264183,-460.0,0.0002,2]
[372556172,1752682264193,-460.0,0.0002,2]
[372556173,1752682264203,-460.0,0.0002,2]
[372556174,1752682264213,-460.0,0.0002,2]
[372556175,1752682264224,-460.0,0.0002,2]
[372556176,1752682264234,-460.0,0.0002,2]
[372556177,1752682264245,-460.0,0.0002,2]
[372556178,1752682264255,-460.0,0.0002,2]
[372556179,1752682264266,-460.0,0.0002,2]
[372556180,1752682264279,-460.0,0.0002,2]
[372556181,1752682264289,-1115.86,0.0002,2]
[372556182,1752682264299,-523.69,0.0002,2]
[372556183,1752682264309,-4066.52,0.0002,2]
[372556184,1752682264319,-619.31,0.0002,2]
[372556185,1752682264328,-460.0,0.0002,2]
[372556186,1752682264340,-574.27,0.0002,2]
[372556187,1752682264352,-464.25310144,0.0002,2]
[372556188,1752682264362,-460.0,0.0002,2]
[372556189,1752682264372,-460.0,0.0002,2]
[372556190,1752682264383,-460.0,0.0002,2]
[372556191,1752682264392,-460.0,0.0002,2]
[372556192,1752682264402,-1328.1,0.0002,2]
[372556193,1752682264412,-918.72,0.0002,2]
[372556194,1752682264422,-2299.85,0.0002,2]
[372556195,1752682264432,-460.0,0.0002,2]
[372556196,1752682264442,-460.0,0.0002,2]
[372556197,1752682264452,-773.05,0.0002,2]
[372556198,1752682264462,-460.0,0.0002,2]
[372556199,1752682264471,-460.0,0.0002,2]
[372556200,1752682264481,-4580.98,0.0002,2]
[372556201,1752682264491,-460.0,0.0002,2]
[372556202,1752682264501,-460.0,0.0002,2]
[372556203,1752682264510,-755.59,0.0002,2]
[372556204,1752682264521,-460.0,0.0002,2]
[372556205,1752682264531,-913.1,0.0002,2]
[372556206,1752682264541,-460.0,0.0002,2]
[372556207,1752682264551,-460.0,0.0002,2]
[372556208,1752682264561,-460.0,0.0002,2]
[372556209,1752682264571,-810.6,0.0002,2]
[372556210,1752682264581,-985.68,0.0002,2]
[372556211,1752682264590,-460.0,0.0002,2]
[372556212,1752682264600,-460.0,0.0002,2]
[372556213,1752682264609,-460.0,0.0002,2]
[372556214,1752682264619,-460.0,0.0002,2]
[372556215,1752682264630,-460.0,0.0002,2]
[372556216,1752682264640,-1927.53,0.0002,2]
[372556217,1752682264650,-460.0,0.0002,2]
[372556218,1752682264660,-460.0,0.0002,2]
[372556219,1752682264670,-460.0,0.0002,2]
[372556220,1752682264680,-477.77,0.0002,2]
[372556221,1752682264690,-460.0,0.0002,2]
[372556222,1752682264700,-2098.91,0.0002,2]
[372556223,1752682264710,-330.18802534,0.0002,2]
[372556224,1752682264720,-460.0,0.0002,2]
[372556225,1752682264730,-460.0,0.0002,2]
[372556226,1752682264740,-460.0,0.0002,2]
[372556227,1752682264750,-850.69,0.0002,2]
[372556228,1752682264759,-460.0,0.0002,2]
[372556229,1752682264771,-3246.09,0.0002,2]
[372556230,1752682264780,-460.0,0.0002,2]
[372556231,1752682264790,-460.0,0.0002,2]
[372556232,1752682264799,-460.0,0.0002,2]
[372556233,1752682264809,-467.98456549,0.0002,2]
[372556234,1752682264819,-496.33,0.0002,2]
[372556235,1752682264828,-460.0,0.0002,2]
[372556236,1752682264837,-4054.42,0.0002,2]
[372556237,1752682264847,-1129.6,0.0002,2]
[372556238,1752682264856,-460.0,0.0002,2]
[372556239,1752682264865,-460.0,0.0002,2]
[372556240,1752682264875,-460.0,0.0002,2]
[372556241,1752682264885,-460.0,0.0002,2]
[372556242,1752682264895,-460.0,0.0002,2]
[372556243,1752682264905,-460.0,0.0002,2]
[372556244,1752682264914,-4000.0,0.0002,4]
[372556245,1752682264924,-500.0,0.00020021,2]
[372556246,1752682264934,-849.79101408,0.00020021,2]